Cogmind - Beta 14 @@@ ROGUE MODE // 2024.09.11 @ 22:34:54 Player: J1ang-5h1 Result: Destroyed by P-70 Sage with Tesla Rifle Performance ------------- Evolutions (5) 2500 Regions Visited (10) 2000 Robots Destroyed (96) 480 Value Destroyed (2380) 2380 Prototype IDs (30) 600 Alien Tech Used (0) 0 Bonus (1075) 1075 TOTAL SCORE: 9035 Bonus ------- High Alert Combat Kills 127 Follower Combat Kills 659 Registered with UFD 300 Met Imprinter 300 Friendly Fire -311 Cogmind --------- Core Integrity 0/1000 Matter 87/300 Energy 19/100 System Corruption 24% Temperature Cool (0) Movement Core (100) Ox1 Location -5/Factory Parts ------- > --- POWER (2) -------- (None) > --- PROPULSION (4) --- (None) > --- UTILITY (9) ------ (None) > --- WEAPON (2) ------- Companion Sword > --- INVENTORY (5) ---- Launcher Loader Cloaking Device Power Bank Peak State ------------ > --- POWER ------------ Neutrino Core Neutrino Core > --- PROPULSION ------- Armored Medium Treads Armored Medium Treads Armored Medium Treads Armored Medium Treads > --- UTILITY ---------- Scrap Suit Improved Coolant Injector Huge Storage Unit Deep Structural Scanner Spectral Analyzer Improved Transmission Jammer EM Disruption Field Hacking Drone Bay > --- WEAPON ----------- KE Penetrator Companion Sword > --- INVENTORY -------- Improved Treads Improved Sensor Array Improved Signal Interpreter Launcher Loader Improved Weapon Cycler Force Booster Cloaking Device Improved Medium Armor Plating Improved Shock Absorption System Component Analysis Suite High-powered Tractor Beam Drone Bay Scrapoid Pod Power Bank Variable Charge Gun Heavy Machine Gun Heavy Missile Launcher Guided Missile Launcher Precision Grenade Launcher Rocket Array Long-range Missile Launcher CR-A16's Pointy Stick [Rating: 108] Favorites ----------- Power Ion Engine Engine Ion Engine Power Core Fission Core Propulsion Spiked Treads Treads Spiked Treads Leg Carbon-fiber Leg Utility Huge Storage Unit Device Deep Structural Scanner Storage Huge Storage Unit Processor Spectral Analyzer Protection Makeshift Light Armor Plating Weapon Battle Cannon Energy Gun Variable Charge Gun Energy Cannon Phase Cannon Ballistic Gun Assault Rifle Ballistic Cannon Battle Cannon Launcher Heavy Missile Launcher Special Weapon Mining Laser Slashing Weapon Companion Sword Piercing Weapon CR-A16's Pointy Stick Build | -11 -10 -10 -8 -8 -6 -6 -6 -6 -5 -5 ------- Run | Yrd Mat Sub Rec Scr Fac Low Low Zio Pro Fac Slots Evolved 10 | . . . . . 8 . . . . 2 Power 1 | . . . . . 1 . . . . . Propulsion 2 | . . . . . 2 . . . . . Utility 7 | . . . . . 5 . . . . 2 Weapon . | . . . . . . . . . . . Parts Attached 143 | 2 32 8 3 11 13 6 7 9 . 52 Power 16 | . 5 . . 1 2 1 1 . . 6 Engine 9 | . 4 . . 1 1 1 . . . 2 Core 7 | . 1 . . . 1 . 1 . . 4 Reactor . | . . . . . . . . . . . Propulsion 30 | . 10 1 3 2 2 . 2 1 . 9 Treads 28 | . 10 1 3 2 2 . 1 . . 9 Leg 2 | . . . . . . . 1 1 . . Wheel . | . . . . . . . . . . . Hover . | . . . . . . . . . . . Flight . | . . . . . . . . . . . Utility 40 | 1 1 1 . 4 7 4 3 2 . 17 Device 30 | 1 . . . 1 5 3 3 1 . 16 Storage 3 | . 1 . . 2 . . . . . . Processor 1 | . . . . . 1 . . . . . Hackware . | . . . . . . . . . . . Protection 6 | . . 1 . 1 1 1 . 1 . 1 Artifact . | . . . . . . . . . . . Weapon 57 | 1 16 6 . 4 2 1 1 6 . 20 Energy Gun 3 | . . . . . . 1 . . . 2 Energy Cannon 5 | . . . . 1 1 . . 2 . 1 Ballistic Gun 14 | 1 10 . . . . . . . . 3 Ballistic Cannon 6 | . . 4 . 2 . . . . . . Launcher 10 | . . . . . 1 . . 3 . 6 Special Weapon 8 | . 6 2 . . . . . . . . Impact Weapon . | . . . . . . . . . . . Slashing Weapon 9 | . . . . 1 . . 1 1 . 6 Piercing Weapon 2 | . . . . . . . . . . 2 Special Melee Weapon . | . . . . . . . . . . . Unidentified Prototypes 5 | . . . . 1 . . . 4 . . Corrupted Parts 1 | . . . . . . . . . . 1 System Corruption 4 | . . . . . . . . . . 4 Parts Lost 33 | . . . . . . 2 9 . . 22 Power 7 | . . . . . . . 2 . . 5 Propulsion 7 | . . . . . . . 3 . . 4 Utility 14 | . . . . . . 2 4 . . 8 Weapon 5 | . . . . . . . . . . 5 Highest Loss Streak 12 | . . . . . . 1 9 . . 12 To Critical Strikes 1 | . . . . . . . . . . 1 Average Slot Usage (%) 90 | . 99 100 100 94 95 93 59 79 86 87 Engine 8 | . 9 14 14 13 7 11 . . . 1 Core 2 | . 4 . . . 3 1 4 6 6 6 Treads 22 | . 22 28 28 26 23 26 13 13 13 18 Leg 1 | . 5 . . . . . . 6 13 2 Device 11 | . 14 12 . . 26 20 19 20 20 30 Storage 10 | . 14 14 14 13 6 6 6 6 6 4 Processor 2 | . . . . . 6 6 6 6 6 4 Protection 7 | . . 1 14 13 6 6 . 5 6 2 Energy Cannon 4 | . . . . 6 8 8 . 8 6 1 Ballistic Gun 2 | . 26 9 . . . . . . . . Ballistic Cannon 10 | . . 16 28 19 3 . . . . . Slashing Weapon 1 | . . . . . . . 5 3 6 4 Peak Build Rating 108 | 8 10 15 18 30 71 71 71 79 79 108 Average Rating 40 | 6 8 10 16 23 64 66 56 70 79 94 On Entrance 40 | 6 8 8 15 18 27 71 71 60 79 79 Naked Turns 64 | . . . . 56 . . . . . 8 Heaviest Build 130 | 13 30 35 35 102 128 128 116 125 117 130 Greatest Support 111 | 20 40 40 40 40 82 82 82 47 47 111 Greatest Overweight (x) 26 | . 8 . . 26 2 1 4 2 2 2 Average Overweight (x) 1 | . . . . 2 1 1 1 2 2 1 Largest Inventory Capacity 25 | 8 15 15 15 25 25 25 25 25 25 25 Average Capacity 22 | 8 11 15 15 23 25 25 25 25 25 24 Most Carried 25 | 8 15 15 15 25 25 25 25 25 25 25 Average Carried 20 | 6 10 14 14 20 23 24 24 24 25 24 Final Capacity 25 | 8 15 15 15 25 25 25 25 25 25 5 Final Carried 25 | 8 15 15 14 25 25 25 25 25 25 4 Class Distribution -------------------- 42% | Mutant 42% | Commander-Mutant 10% | Derelict-Mutant Dominant Class ---------------- Mutant | -10/Materials Mutant | -10/Subcaves Commander-Mutant | -8/Recycling Commander-Mutant | -8/Scraptown Mutant | -6/Factory Mutant | -6/Lower Caves Mutant | -6/Lower Caves Mutant | -6/Zion Derelict-Mutant | -5/Proximity Caves Infiltrator-Mutant | -5/Factory Resources | -11 -10 -10 -8 -8 -6 -6 -6 -6 -5 -5 ----------- Run | Yrd Mat Sub Rec Scr Fac Low Low Zio Pro Fac Matter Collected 4250 | 280 805 178 345 154 304 588 70 90 . 1436 Remotely . | . . . . . . . . . . . Salvage Created 3862 | 130 661 94 795 . 415 56 156 . . 1555 Parts 187 | 11 55 10 18 . 8 . 7 . . 78 Haulers Intercepted 4 | . 2 . . . 1 . . . . 1 Recyclers Shooed 9 | 1 . . 5 . . . . . . 3 Parts Field Recycled . | . . . . . . . . . . . Retrieved Matter . | . . . . . . . . . . . Parts Self-Destructed 42 | . . 10 . . . 18 13 1 . . Prevented . | . . . . . . . . . . . Kills | -11 -10 -10 -8 -8 -6 -6 -6 -6 -5 -5 ------- Run | Yrd Mat Sub Rec Scr Fac Low Low Zio Pro Fac Combat Hostiles Destroyed 53 | . 17 5 4 . 3 2 2 . . 20 Melee 11 | . . . . . . . 2 . . 9 Guns 20 | . 17 3 . . . . . . . . Cannons 12 | . . 2 4 . 3 2 . . . 1 AOE 10 | . . . . . . . . . . 10 Classes Destroyed 20 | 2 5 1 4 . 1 . 2 . . 5 Worker 8 | . 1 . . . . . . . . 7 Builder 5 | . . . 2 . . . . . . 3 Tunneler 3 | 3 . . . . . . . . . . Hauler 5 | . 2 . . . 2 . . . . 1 Recycler 15 | 1 . . 9 . 1 . . . . 4 Mechanic 2 | . . . . . . . . . . 2 Watcher 4 | . 3 . . . . . . . . 1 Swarmer 18 | . 9 3 . . . . . . . 6 Saboteur 1 | . . . . . . . . . . 1 Grunt 17 | . 8 . . . 2 2 2 . . 3 Brawler 1 | . . . 1 . . . . . . . Duelist 1 | . . . 1 . . . . . . . Sentry 3 | . . . 2 . . . . . . 1 Specialist 1 | . . . . . . . . . . 1 Hunter 2 | . . . . . . . . . . 2 Programmer 7 | . . . . . 1 . . . . 6 Behemoth 1 | . . . . . . . . . . 1 Subdweller 2 | . . 2 . . . . . . . . Samaritan 1 | . . . . . . . 1 . . . Tinkerer 1 | . . . . . . . 1 . . . Best Kill Streak 8 | 2 3 3 3 . 2 1 1 . . 8 Combat Bots Only 6 | . 3 3 3 . 2 1 1 . . 6 Max Kills in Single Turn 3 | 1 1 1 1 . 1 1 1 . . 3 Gunslinging . | . . . . . . . . . . . Exploded 3 | . . . . . . . . . . 3 Melee 1 | . . . . . . . 1 . . 1 Uniques/NPCs Destroyed . | . . . . . . . . . . . Combat | -11 -10 -10 -8 -8 -6 -6 -6 -6 -5 -5 -------- Run | Yrd Mat Sub Rec Scr Fac Low Low Zio Pro Fac Hostile Shots Fired 639 | . 67 22 8 . 17 24 67 . . 434 Missed 176 | . 15 8 2 . 4 7 16 . . 124 Damage Taken 7960 | . 495 221 90 . 204 393 956 . . 5601 Core 1259 | . 46 . 26 . 25 . 160 . . 1002 Absorbed by Shields 151 | . . . . . 20 70 61 . . . Ignored by Resistances 843 | . . . . . . . . . . 843 Regen/Repaired (Parts) 70 | . 70 . . . . . . . . . Core Remaining (%) 83 | 100 . . . 71 . . . . 78 . Volleys Fired 219 | 10 76 37 32 . 20 9 3 . . 32 Largest 2 | 2 2 2 2 . 2 2 2 . . 2 Hottest 173 | 40 100 100 78 . 170 170 160 . . 173 Shots Fired 360 | 20 137 47 61 . 31 18 6 . . 40 Gun 165 | 20 122 6 . . . 1 3 . . 13 Cannon 139 | . . 16 61 . 30 17 3 . . 12 Launcher 16 | . . . . . 1 . . . . 15 Special 40 | . 15 25 . . . . . . . . Kinetic 232 | 20 122 22 61 . 5 . . . . 2 Thermal 112 | . 15 25 . . 25 18 6 . . 23 Explosive 16 | . . . . . 1 . . . . 15 Electromagnetic . | . . . . . . . . . . . Robot Hit Streak 14 | 7 12 11 14 . 9 5 7 . . 6 Robot Miss Streak 7 | 2 7 1 3 . 2 2 . . . 3 Penetration Max . | . . . . . . . . . . . Secondary Targets 3 | . 3 . . . . . . . . . Max Gunslinging Chain 1 | . 1 . . . . . . . . . Shots Hit Robots 265 | 12 70 13 36 . 17 9 20 . . 88 Core Hits 147 | 5 32 7 16 . 6 4 8 . . 69 Critical Kills 1 | . . . . . 1 . . . . . Critical Parts Destroyed . | . . . . . . . . . . . Critical Strikes 4 | . . 1 1 . 1 . . . . 1 Meltdown 1 | . . . . . 1 . . . . . Blast 2 | . . 1 1 . . . . . . . Impale 1 | . . . . . . . . . . 1 Melee Attacks 140 | . . . . . . . 18 1 4 117 Impact . | . . . . . . . . . . . Slashing 125 | . . . . . . . 18 1 4 102 Piercing 15 | . . . . . . . . . . 15 Sneak Attacks 18 | . . . . . . . 3 . . 15 Combat Hostiles . | . . . . . . . . . . . Follow-up Attacks 9 | . . . . . . . . . . 9 Damage Inflicted 9897 | 150 943 207 918 . 568 275 859 . . 5977 Guns 1322 | 150 943 39 . . . . 65 . . 125 Cannons 2186 | . . 168 918 . 547 275 93 . . 185 Explosions 2781 | . . . . . 21 . . . . 2760 Melee 3608 | . . . . . . . 701 . . 2907 Ramming . | . . . . . . . . . . . Kinetic 2297 | 150 943 207 918 . 79 . . . . . Thermal 1211 | . . . . . 468 275 158 . . 310 Explosive 2781 | . . . . . 21 . . . . 2760 Electromagnetic . | . . . . . . . . . . . Impact . | . . . . . . . . . . . Slashing 3473 | . . . . . . . 701 . . 2772 Piercing 135 | . . . . . . . . . . 135 Highest Corruption 23 | . . . . . . . . . . 23 Average Corruption 10 | . . . . . . . . . . 10 Corruption Purged 7 | . . . . . . . . . . 7 Corruption Blocked . | . . . . . . . . . . . Effects 51 | . . . . . . . . . . 51 Message Errors 16 | . . . . . . . . . . 16 Matter Fused 14 | . . . . . . . . . . 14 Heat Flow Errors 3 | . . . . . . . . . . 3 Energy Discharges 5 | . . . . . . . . . . 5 Parts Rejected 1 | . . . . . . . . . . 1 Parts Fused 1 | . . . . . . . . . . 1 Data Loss (minor) 6 | . . . . . . . . . . 6 Data Loss (major) 3 | . . . . . . . . . . 3 Alerts 1 | . . . . . . . . . . 1 Weapon Failures 1 | . . . . . . . . . . 1 Overload Shots . | . . . . . . . . . . . Overflow Damage 643 | . . . 54 . 3 . 49 . . 537 Projectiles 56 | . . . 54 . 2 . . . . . Explosions 66 | . . . . . 1 . . . . 65 Melee 521 | . . . . . . . 49 . . 472 Knockbacks 12 | . . 2 9 . 1 . . . . . Impact . | . . . . . . . . . . . Kinetic 11 | . . 2 8 . 1 . . . . . Secondary 1 | . . . 1 . . . . . . . Self-Inflicted Damage 102 | . . . . . . . . . . 102 Shots 5 | . . . . . . . . . . 5 Rammed . | . . . . . . . . . . . Targets Rammed . | . . . . . . . . . . . Kicked . | . . . . . . . . . . . Crushed . | . . . . . . . . . . . Highest Temperature 351 | . 112 . 225 . 351 273 243 . . 285 Average Temperature 83 | . 28 . 61 . 126 111 132 . . 126 Received Heat Transfer 1276 | . 135 54 45 . 26 129 455 . . 432 Effects 3 | . . . . . 1 . . . . 2 Energy Bleed 1 | . . . . . 1 . . . . . Interference 2 | . . . . . . . . . . 2 Siege Activations . | . . . . . . . . . . . Robots Corrupted . | . . . . . . . . . . . Combat Hostiles . | . . . . . . . . . . . Parts Fried 1 | . . . . . . . . . . 1 Impact Corruptions . | . . . . . . . . . . . Robots Melted 2 | . . . . . 2 . . . . . Combat Hostiles . | . . . . . . . . . . . Parts Melted 7 | . . . . . 7 . . . . . Heat Transferred 1545 | . . . . . 555 333 222 . . 435 Parts Sabotaged 2 | . . . . . . . . . . 2 Parts Stolen . | . . . . . . . . . . . Parts Stripped . | . . . . . . . . . . . Power Chain Reactions . | . . . . . . . . . . . Alert | -11 -10 -10 -8 -8 -6 -6 -6 -6 -5 -5 ------- Run | Yrd Mat Sub Rec Scr Fac Low Low Zio Pro Fac Peak Influence 547 | 20 297 . 87 . 131 . . . . 547 Initial 13 | . 13 . . . . . . . . . Average 107 | 11 159 . 25 . 51 . . . . 155 Maximum Alert Level 2 | . 1 . . . . . . . . 2 Low Security (%) 82 | 100 65 . 100 . 100 . . . . 76 Level 1 13 | . 34 . . . . . . . . 7 Level 2 4 | . . . . . . . . . . 16 Level 3 . | . . . . . . . . . . . Level 4 . | . . . . . . . . . . . Level 5 . | . . . . . . . . . . . High Security . | . . . . . . . . . . . Max Security . | . . . . . . . . . . . Squads Dispatched 16 | . 6 . . . 4 . . . . 6 Investigation 6 | . 4 . . . 1 . . . . 1 Extermination 5 | . . . . . 1 . . . . 4 Reinforcement 5 | . 2 . . . 2 . . . . 1 Assault . | . . . . . . . . . . . Garrison . | . . . . . . . . . . . Intercept . | . . . . . . . . . . . Searches Triggered . | . . . . . . . . . . . Construction Impeded 2 | . . . . . 1 . . . . 1 Haulers Reinforced . | . . . . . . . . . . . Active Scanning Responses . | . . . . . . . . . . . Cargo Convoy Interrupts 1 | . . . . . . . . . . 1 Stealth | -11 -10 -10 -8 -8 -6 -6 -6 -6 -5 -5 --------- Run | Yrd Mat Sub Rec Scr Fac Low Low Zio Pro Fac Distress Signals 4 | . 2 . . . 1 . . . . 1 Communications Jammed 27 | . . . . . . . . . . 27 Distress Signals 27 | . . . . . . . . . . 27 Times Spotted 112 | . 30 10 5 . 11 7 4 . . 45 Peak Tracking Total 13 | . 3 6 2 . 3 4 4 . . 13 Tactical Retreats 5 | . 2 2 . . . . . . . 1 Traps | -11 -10 -10 -8 -8 -6 -6 -6 -6 -5 -5 ------- Run | Yrd Mat Sub Rec Scr Fac Low Low Zio Pro Fac Traps Triggered 6 | . 5 1 . . . . . . . . Indirectly . | . . . . . . . . . . . Trap Hack Attempts . | . . . . . . . . . . . Triggered . | . . . . . . . . . . . Disarmed . | . . . . . . . . . . . Reprogrammed . | . . . . . . . . . . . Reused 1 | . . . . . . 1 . . . . Traps Extracted . | . . . . . . . . . . . Installed 1 | . . . . . . 1 . . . . Triggered 1 | . . . . . . 1 . . . . Most Traps Carried 3 | . . . . 3 3 3 2 2 . . Machines | -11 -10 -10 -8 -8 -6 -6 -6 -6 -5 -5 ---------- Run | Yrd Mat Sub Rec Scr Fac Low Low Zio Pro Fac Machines Disabled 6 | . 1 1 1 . 1 . . . . 2 Max in Single Turn 1 | . 1 1 1 . 1 . . . . 1 Machines Repaired . | . . . . . . . . . . . Machines Dismantled . | . . . . . . . . . . . Machines Sabotaged . | . . . . . . . . . . . Overloaded Fab Kills . | . . . . . . . . . . . Hacking | -11 -10 -10 -8 -8 -6 -6 -6 -6 -5 -5 --------- Run | Yrd Mat Sub Rec Scr Fac Low Low Zio Pro Fac Machines Accessed 33 | . 9 2 9 4 5 1 . . . 3 Terminals 15 | . 6 . 6 . 3 . . . . . Fabricators 1 | . . . . . . . . . . 1 Repair Stations 1 | . 1 . . . . . . . . . Recycling Units 8 | . 2 . 3 . 2 . . . . 1 Scanalyzers 1 | . . . . . . . . . . 1 Garrison Access . | . . . . . . . . . . . Total Hacks 100 | . 26 4 31 21 9 1 . . . 8 Successful 70 | . 20 4 18 21 3 1 . . . 3 Failed 30 | . 6 . 13 . 6 . . . . 5 Catastrophic 6 | . 1 . 2 . 2 . . . . 1 Database Lockouts . | . . . . . . . . . . . Manual 53 | . 18 . 21 . 5 . . 5 . 4 Terminals 45 | . 18 . 20 . 7 . . . . . Fabricators 3 | . . . . . . . . . . 3 Repair Stations 2 | . 2 . . . . . . . . . Recycling Units 22 | . 6 . 11 . 2 . . . . 3 Scanalyzers 2 | . . . . . . . . . . 2 Garrison Access . | . . . . . . . . . . . Terminal Hacks 34 | . 5 4 2 21 1 1 . . . . Record 22 | . . 3 . 19 . . . . . . Robot Analysis 5 | . 4 . 1 . . . . . . . Open Door 2 | . . . . 1 . 1 . . . . Open DSF 1 | . . . . . 1 . . . . . Locate Traps 1 | . 1 . . . . . . . . . Hauler Manifests 1 | . . . 1 . . . . . . . Derelict Proto ID Bank 2 | . . 1 . 1 . . . . . . Fabricator Hacks . | . . . . . . . . . . . Repair Station Hacks 2 | . 2 . . . . . . . . . Scan Component 1 | . 1 . . . . . . . . . Repair 1 | . 1 . . . . . . . . . Recycling Unit Hacks 11 | . 4 . 6 . . . . . . 1 Process 1 | . 1 . . . . . . . . . Report Inventory 6 | . 2 . 3 . . . . . . 1 Retrieve Matter 1 | . 1 . . . . . . . . . Retrieve Components 3 | . . . 3 . . . . . . . Scanalyzer 1 | . . . . . . . . . . 1 Insert Component 1 | . . . . . . . . . . 1 Garrison Access Hacks . | . . . . . . . . . . . Unauthorized Hacks 22 | . 9 . 10 . 2 . . . . 1 Terminals 16 | . 7 . 8 . 1 . . . . . Assimilate 1 | . . . . . 1 . . . . . Botnet 4 | . 2 . 2 . . . . . . . Skim 11 | . 5 . 6 . . . . . . . Fabricators . | . . . . . . . . . . . Repair Stations 2 | . . . . . 1 . . . . 1 Recycling Units 4 | . 2 . 2 . . . . . . . Tunnel 4 | . 2 . 2 . . . . . . . Scrapoids 2 | . . . . . 1 . . . . 1 Scanalyzers . | . . . . . . . . . . . Garrison Access . | . . . . . . . . . . . Data Cores Recovered . | . . . . . . . . . . . Used . | . . . . . . . . . . . Hacking Detections 23 | . 8 . 8 . 4 . . . . 3 Full Trace Events 2 | . 1 . 1 . . . . . . . Feedback Events . | . . . . . . . . . . . Feedback Blocked . | . . . . . . . . . . . Robot Schematics Acquired 4 | . . . . . . . . 4 . . Robots Built . | . . . . . . . . . . . Authchips . | . . . . . . . . . . . Time . | . . . . . . . . . . . Total Robot Build Rating . | . . . . . . . . . . . Part Schematics Acquired 15 | . . . . . . . . 15 . . Parts Built . | . . . . . . . . . . . Authchips . | . . . . . . . . . . . Time . | . . . . . . . . . . . Total Part Build Rating . | . . . . . . . . . . . Parts Repaired 1 | . 1 . . . . . . . . . Time 26 | . 26 . . . . . . . . . Parts Recycled . | . . . . . . . . . . . Recycled Matter 181 | . 181 . . . . . . . . . Retrieved Matter 286 | . 286 . . . . . . . . . Retrieved Components 12 | . . . 12 . . . . . . . Parts Scanalyzed 1 | . . . . . . . . . . 1 Part Schematics Acquired . | . . . . . . . . . . . Parts Damaged 1 | . . . . . . . . . . 1 Bothacking | -11 -10 -10 -8 -8 -6 -6 -6 -6 -5 -5 ------------ Run | Yrd Mat Sub Rec Scr Fac Low Low Zio Pro Fac Used RIF Installer . | . . . . . . . . . . . Robots Hacked . | . . . . . . . . . . . Non-combat . | . . . . . . . . . . . Combat . | . . . . . . . . . . . Robot Hacks Applied . | . . . . . . . . . . . Relay Couplers Released . | . . . . . . . . . . . Fabnet Peak Effective % . | . . . . . . . . . . . Robots Rewired 12 | . . . 11 . . . . . . 1 Allies Hacked . | . . . . . . . . . . . Hacks Repelled . | . . . . . . . . . . . Allies | -11 -10 -10 -8 -8 -6 -6 -6 -6 -5 -5 -------- Run | Yrd Mat Sub Rec Scr Fac Low Low Zio Pro Fac Total Allies 23 | . . . 11 . 6 . . . . 6 Largest Group 11 | . . . 11 8 8 2 . . . 5 Highest-Rated Group 238 | . . . 167 137 182 56 . . . 238 Highest-Rated Ally 85 | . . . 34 34 34 28 . . . 85 Total Orders 6 | . . . . 6 . . . . . . STAY 1 | . . . . 1 . . . . . . FOLLOW 1 | . . . . 1 . . . . . . COLLECT 4 | . . . . 4 . . . . . . Ally Attacks 110 | . . . 7 . 60 4 . . . 39 Total Damage 2567 | . . . 118 . 1304 69 . . . 1076 Kills 27 | . . . 3 . 12 1 . . . 11 Allies Corrupted 1 | . . . . . . . . . . 1 Allies Melted . | . . . . . . . . . . . Intel | -11 -10 -10 -8 -8 -6 -6 -6 -6 -5 -5 ------- Run | Yrd Mat Sub Rec Scr Fac Low Low Zio Pro Fac Robot Analysis Total 5 | . 4 . 1 . . . . . . . Derelict Logs Recovered 11 | . . 1 . 1 . 3 2 1 3 . Drone Launches 1 | . . . . . . . . . . 1 Drone Recoveries 1 | . . . . . . . . . . 1 Exploration | -11 -10 -10 -8 -8 -6 -6 -6 -6 -5 -5 ------------- Run | Yrd Mat Sub Rec Scr Fac Low Low Zio Pro Fac Turns Passed 30565 | 93 2581 1753 2086 11248 999 2645 2664 2913 1541 2042 Spaces Moved 11976 | 38 1453 901 1136 3456 369 1059 1123 1180 632 629 Core 368 | . 1 . . 357 . . . . . 10 Treads 11214 | . 1096 901 1136 3099 369 1059 1123 1180 632 619 Legs 394 | 38 356 . . . . . . . . . Wheels . | . . . . . . . . . . . Hover . | . . . . . . . . . . . Flight . | . . . . . . . . . . . Fastest Speed 50 | 120 120 160 160 50 243 243 192 242 242 50 Average Speed 238 | 120 150 160 162 322 246 243 230 242 242 237 Slowest Speed 1350 | 120 450 160 165 1350 330 243 465 242 242 250 Overloaded Moves . | . . . . . . . . . . . Propulsion Burnouts . | . . . . . . . . . . . Robots Hopped . | . . . . . . . . . . . Cave-ins Triggered . | . . . . . . . . . . . Exploration Rate (%) 64 | 4 97 47 99 94 9 82 95 90 78 13 Regions Visited 10 Branch Regions 7 Pre-discovered Areas 13 | . 2 2 2 3 . 1 . 1 2 . Known Exits Taken 6 | . . . 1 1 1 1 1 . 1 . Unknown Exits Taken 4 | 1 1 1 . . . . . 1 . . Scrap Searched 30 | . . 9 . 9 . 2 3 4 3 . Spaces Dug 60 | . 14 2 . . 26 2 . . 4 12 Terrain Destroyed 164 | . 14 2 5 . 31 8 . . 4 100 Melee 12 | . . . . . . . . . 4 8 Projectile 47 | . 14 2 5 . 10 8 . . . 8 AOE 105 | . . . . . 21 . . . . 84 Terrain Rammed . | . . . . . . . . . . . Walls Destroyed . | . . . . . . . . . . . Machines Disabled . | . . . . . . . . . . . Actions | -11 -10 -10 -8 -8 -6 -6 -6 -6 -5 -5 --------- Run | Yrd Mat Sub Rec Scr Fac Low Low Zio Pro Fac Total 13323 | 65 1681 1117 1314 3586 431 1115 1171 1238 638 967 Wait 490 | 13 79 158 22 23 3 27 9 34 3 119 Move 11966 | 37 1452 900 1135 3455 368 1058 1122 1179 631 629 Hop . | . . . . . . . . . . . Pick Up 146 | 3 21 6 7 63 15 6 7 7 . 11 Fast Attach 35 | . 9 . . 3 1 3 . 3 . 16 Attach 46 | 1 2 . . 6 7 2 6 3 . 19 Detach 3 | . . . . . . . 1 . . 2 Swap 62 | 1 21 8 3 2 5 1 1 3 . 17 Drop 116 | . 21 8 8 34 12 7 3 8 . 15 Fire 219 | 10 76 37 32 . 20 9 3 . . 32 Melee 127 | . . . . . . . 18 1 4 104 Ram . | . . . . . . . . . . . Kick . | . . . . . . . . . . . Crush . | . . . . . . . . . . . Escape Stasis . | . . . . . . . . . . . Rewire 110 | . . . 107 . . . . . . 3 Trap 1 | . . . . . . 1 . . . . Miscellaneous 2 | . . . . . . 1 1 . . . Route ------- -11/Scrapyard -10/Materials (discovered 6 exits: *Mat x3 / *Min x2 / *Sub) -10/Subcaves (discovered 2 exits: [*Mat] / *Rec) -8/Recycling (discovered 2 exits: *Fac / *Scr) -8/Scraptown (discovered 2 exits: *Fac x2) -6/Factory (discovered 2 exits: *Low x2) -6/Lower Caves -6/Lower Caves (discovered 2 exits: *Fac / *Zio) -6/Zion -5/Proximity Caves -5/Factory (discovered 2 exits: Upp / Ext) History --------- Turn | Location | Event 21 | -11/Scrapyard | Discovered new exit (range 0) 94 | -11/Scrapyard | Entered Materials 105 | -10/Materials | Discovered new exit (range 16) 250 | -10/Materials | Discovered new exit (range 3) 309 | -10/Materials | Build established: Mutant 744 | -10/Materials | Learned Storage garrison access intel 779 | -10/Materials | Learned Storage emergency access door positions 805 | -10/Materials | Identified exit to Mines 805 | -10/Materials | Identified exit to Materials 822 | -10/Materials | Learned 2 Mines zone layouts 828 | -10/Materials | Learned 2 Storage zone layouts 829 | -10/Materials | Learned Storage emergency access door positions 836 | -10/Materials | Learned 2 Storage zone layouts 851 | -10/Materials | Learned Storage stockpile data 970 | -10/Materials | Repaired Assault Rifle 2196 | -10/Materials | Discovered exit to Materials (range 9) 2664 | -10/Materials | Discovered new exit (range 5) 2675 | -10/Materials | Entered Subcaves 2881 | -10/Subcaves | Visited Clippyterm 2885 | -10/Subcaves | Learned location of Section 7 (-2) 3101 | -10/Subcaves | Shifting Twisted Machinery released Sub. Beam Cannon 3155 | -10/Subcaves | Shifting Twisted Machinery released Battle Cannon 3241 | -10/Subcaves | Visited 4L-MR0's lab 3274 | -10/Subcaves | Found Power Bank 3674 | -10/Subcaves | Disturbed a concealed Subdweller 3770 | -10/Subcaves | Discovered new exit (range 14) 3788 | -10/Subcaves | A swath of the cavern ceiling suddenly collapsed 3817 | -10/Subcaves | Learned location of Zion (-6) 3817 | -10/Subcaves | Met a Zionite searching for "candidates" 4220 | -10/Subcaves | Learned Materials emergency access door positions 4245 | -10/Subcaves | Disturbed a concealed Subdweller 4423 | -10/Subcaves | Discovered new exit (range 4) 4428 | -10/Subcaves | Entered Recycling 4584 | -8/Recycling | Build established: Derelict-Mutant 5530 | -8/Recycling | Build established: Commander-Mutant 5850 | -8/Recycling | Identified exit to Factory 5850 | -8/Recycling | Identified exit to Scraptown 5921 | -8/Recycling | Learned Storage emergency access door positions 6032 | -8/Recycling | Learned Storage trap positions 6075 | -8/Recycling | Learned 4 Factory zone layouts 6107 | -8/Recycling | Learned 2 Lower Caves zone layouts 6147 | -8/Recycling | Learned Storage interactive machine intel 6199 | -8/Recycling | Learned 4 Lower Caves zone layouts 6459 | -8/Recycling | Scanned before Scraplab entrance 6484 | -8/Recycling | Entered Scraplab 6514 | -8/Recycling | Entered Scraptown 6514 | -8/Scraptown | Accompanied by 8 allies 6661 | -8/Scraptown | Visited UFD Registry 6661 | -8/Scraptown | Registered with UFD as "Wirechaser" 8028 | -8/Scraptown | Scanned Subdweller tech in exchange for log data 8104 | -8/Scraptown | Discovered exit to Factory (range 5) 8314 | -8/Scraptown | Guru changed UFD alias to "Wireslicer" 8553 | -8/Scraptown | Visited Spacefarers 8733 | -8/Scraptown | Visited Symbiants 8812 | -8/Scraptown | Visited Bundlers 9251 | -8/Scraptown | Visited Comm Corps 9579 | -8/Scraptown | Visited Observation Area 9745 | -8/Scraptown | Visited Junk Repository 9965 | -8/Scraptown | Visited Curators Association 10083 | -8/Scraptown | Visited Infowarlord's Domain 10111 | -8/Scraptown | Found Spectral Analyzer 10288 | -8/Scraptown | Visited Scrapoid Pod Storage 10309 | -8/Scraptown | Found Scrapoid Pod 10385 | -8/Scraptown | Visited Science Guys 10582 | -8/Scraptown | Visited Derelict Rescue Squad 10614 | -8/Scraptown | Found DRS Beacon 10832 | -8/Scraptown | Visited Sword Containment 10960 | -8/Scraptown | Visited Junk Repository 11113 | -8/Scraptown | Visited Scrap Suit Storage 11188 | -8/Scraptown | Visited Cartography Club 11862 | -8/Scraptown | Learned location of Storage (-8) 11862 | -8/Scraptown | Learned location of Armory (-3) 11862 | -8/Scraptown | Learned 8 Materials zone layouts 11862 | -8/Scraptown | Learned 12 Research zone layouts 11862 | -8/Scraptown | Learned 16 Research zone layouts 11862 | -8/Scraptown | Learned 16 Lower Caves zone layouts 11862 | -8/Scraptown | Learned 12 Proximity Caves zone layouts 11862 | -8/Scraptown | Learned 4 Hub_04(d) zone layouts 11862 | -8/Scraptown | Learned location of 3 exits from Lower Caves 11862 | -8/Scraptown | Learned location of 3 exits from Proximity Caves 11880 | -8/Scraptown | Found Deep Structural Scanner 12447 | -8/Scraptown | Found Scrap Suit 12579 | -8/Scraptown | Visited Modified Component R&D 12939 | -8/Scraptown | Discovered exit to Factory (range 5) 15816 | -8/Scraptown | Found Scrap Suit 17762 | -8/Scraptown | Entered Factory 17762 | -6/Factory | Accompanied by 8 allies 17762 | -6/Factory | Evolved 8 slots: Power x1, Propulsion x2, Utility x5 17763 | -6/Factory | Identified exit to Lower Caves 17793 | -6/Factory | Identified exit to DSF 18002 | -6/Factory | Lost 7 allies 18077 | -6/Factory | Found Launcher Loader 18357 | -6/Factory | Build established: Mutant 18418 | -6/Factory | Scrapoids reinforcements arrived? 18761 | -6/Factory | Entered Lower Caves 18761 | -6/Lower Caves | Accompanied by 2 allies 18762 | -6/Lower Caves | Identified exit to Lower Caves 19067 | -6/Lower Caves | Learned Factory security intel 19080 | -6/Lower Caves | Activated DRS Beacon 20462 | -6/Lower Caves | Encountered a Warlord checkpoint 21406 | -6/Lower Caves | Entered another Lower Caves area 21407 | -6/Lower Caves | Identified exit to Zion 21407 | -6/Lower Caves | Identified exit to Factory 21407 | -6/Lower Caves | Activated DRS Beacon 21485 | -6/Lower Caves | Lost 9 parts (2p3n4u) 22745 | -6/Lower Caves | Spotted B-75 Beast 23169 | -6/Lower Caves | Encountered a Warlord checkpoint 23197 | -6/Lower Caves | Learned Factory emergency access door positions 24070 | -6/Lower Caves | Entered Zion 24177 | -6/Zion | Found Prototype Launcher 24177 | -6/Zion | Identified Gui. Missile Launcher 24191 | -6/Zion | Found Prototype Launcher 24195 | -6/Zion | Identified Rocket Array 24351 | -6/Zion | Discovered new exit (range 14) 24448 | -6/Zion | Found CR-A16's Pointy Stick 25284 | -6/Zion | Learned Factory terminal intel 25361 | -6/Zion | Acquired unknown access codes intercepted by a Zionite 25465 | -6/Zion | Given the Hacking Drone Bay 25466 | -6/Zion | Found Prototype Device 25800 | -6/Zion | Received a hallucinogenic algorithm 26219 | -6/Zion | Turned away by Imprinter 26710 | -6/Zion | Identified Hacking Drone Bay 26983 | -6/Zion | Entered Proximity Caves 27198 | -5/Proximity Caves | Build established: Derelict-Mutant 27490 | -5/Proximity Caves | Learned Factory garrison access intel 28272 | -5/Proximity Caves | Spotted B-75 Beast 28524 | -5/Proximity Caves | Entered Factory 28524 | -5/Factory | Evolved 2 slots: Utility x2 28525 | -5/Factory | Identified exit to Upper Caves 28525 | -5/Factory | Identified exit to Extension 28528 | -5/Factory | Loaded intel: 28 terminal locations 28529 | -5/Factory | Loaded intel: 3 garrison access locations 29126 | -5/Factory | System corruption reached 10% 29278 | -5/Factory | Scrapoid reinforcements arrived 29390 | -5/Factory | Lost 4 allies 29642 | -5/Factory | Spotted B-75 Beast 29742 | -5/Factory | Rewired B-75 Beast 29893 | -5/Factory | Build established: Infiltrator-Mutant 30080 | -5/Factory | Destroyed Beast 6a 30336 | -5/Factory | Lost 3 parts (1p1n1u) 30530 | -5/Factory | Cargo convoy interrupted 30548 | -5/Factory | Core integrity fell below 50% 30557 | -5/Factory | Released all parts (5) 30560 | -5/Factory | Core integrity fell below 20% 30566 | -5/Factory | Destroyed by P-70 Sage with Tesla Rifle Last Messages --------------- 30555_ Lrn. Missile Launcher destroyed. 30555_ Dropped Broken Variable Charge Gun. 30556_ K-01 Serf collects debris. 30557_ Released Huge Storage Unit. 30557_ Released Spectral Analyzer. 30557_ Released Imp. Transmission Jammer. 30557_ Released Imp. Shock Absorption System. 30557_ Released KE Penetrator. 30557_ Dropped Imp. Treads. 30557_ Dropped Imp. Signal Interpreter. 30558_ Penetrated by Slug. 30559_ The unstable cave ceiling collapses. 30559_ Acquired Companion Sword. 30559_ K-01 Serf collects debris. 30560_ The unstable cave ceiling collapses. 30560_ U-05 Engineer lays Concrete. 30560_ K-01 Serf collects debris. 30561_ Acquired Power Bank. 30561_ Penetrated by Slug. 30562_ K-01 Serf collects debris. Map ----- +----------------------------------------------------+ | ?????????????????+???????????????????????????????? | | ?????????????????????????????????????????????????? | | ???????????????????????????????? """?????????????? | | ??????????????????????????????? ?????????????? | | ??????????????????????????????# ?????????????? | | ??????????????????????????????# #????????????? | | ??????????????????????????????# #????????????? | | ####??????????????????????????# #?"""????????? | | ####??????????????????????????# #?"T"????????? | | ####????????????????????????### #????????????? | | ####???????????????????????? ##+#?????????? | | ###????????????????????"""" ^ #?????????? | | ###?????????????????? ?"""" ^ #?????????? | | ###?????????????? "?" """" !!! #####?????? | | ????????????????# """" ^ !!! #?????? | | ????????????????# # !! #?????? | | #### ????? ##!! """" + ??????? | | #### ""????? ## """" # ???????? | | #### ""????? ## ?? " " % ????????? | | #### ""????? ## ###???????? | | # ????? ## ## #???????? | | # ""????? ## * [ ##???????? | | # """ """ ############# !%= #???????? | | " # """ """ ! ### %### ![=!! ### ##????? | | " # ### #### !!![%![ ## ??"?? | | " ###+#####+##### @/ p!!!=!! #####??""? | | # %####;;!k#!#########??""? | | " == # % # =!!===!= ####??""? | | " +! #= ===*%[== ####??""? | | " = # # !=" """" ####??"T? | | # #! " """ ####??""? | | ###+########### # """""" ####??""? | | "" ## #### # # # """""" ####??""? | | """## ######## ######"############??""? | | F""## """" ######## #### ###??"?? | | ""## """" ######## #### ###????? | | """## """" ################### ###????? | | "" ## """" ################### ??????????????? | | ## """" ## ##### ??????????????? | | ## """" ## ##### ??????????????? | | ## ## ??????????????# ??????????????? | | ## ## "??????????????+ ???????????????? | | | ## ## "??????????????# ?????????????????? | | !! ## ## "??????????????# ?????????????????? | | %| ## ## ??????????????# ?????????????????? | | [![!+ ## ??????????????# ?????????????????? | | +############ ??????????????##??????????????????? | | #### ??????????????????????????????????? | | #### ??????????????????????????????????? | | ! #### ??????????????????????????????????? | +----------------------------------------------------+ Best States ------------- Heat Dissipation 59 Coolant Potential 80 Energy Generation 39 Energy Capacity 530 Matter Stores 300 Matter Capacity 300 Sight Range 24 Terrain Scan Density 10 Jamming Range 14 Armor Coverage 225 Resistance: EX 50 Resistance: EM 25 Power Shielding 15 Point Defense Rating 80 Weapon Cycling 20 Phase Shifting 5 Evasion (%) 55 Recoil Reduction 10 Force Boost 20 Item Schematics ----------------- Fusion Compressor | -6/Zion | Archive Mass Driver | -6/Zion | Archive Lgt. Angular Momentum Engine | -6/Zion | Archive Imp. Thermal Shield | -6/Zion | Archive Imp. Proton Missile Launcher | -6/Zion | Archive Hvy. Phase Cannon | -6/Zion | Archive Stasis Canceller | -6/Zion | Archive Adv. Transmission Jammer | -6/Zion | Archive Adv. Coolant Injector | -6/Zion | Archive Imp. Reaction Control System | -6/Zion | Archive Imp. Component Analysis Suite | -6/Zion | Archive Adv. Signal Interpreter | -6/Zion | Archive Remote Force Field | -6/Zion | Archive Adv. Cooling System | -6/Zion | Archive Remote Shield | -6/Zion | Archive Robot Schematics ------------------ A-15 Conveyor | -6/Zion | Archive T-07 Excavator | -6/Zion | Archive K-01 Serf | -6/Zion | Archive X-77 Beamer | -6/Zion | Archive Fabricated ------------ Nothing Alien Tech Used ----------------- None Achievements -------------- None Challenges ------------ None Game ------ Seed GrenadeTrackerWeb Manual? 0 Play Time 03:20:11 Cumulative 267.5 hours Start 2024.09.11 @ 03:58:24 End 2024.09.11 @ 22:34:54 Sessions 3 Manual Loads 0 Difficulty Rogue Special Mode None Game No. 200 Rogue 190 Adventurer 0 Explorer 10 Win Type - Total 3 Types 3/0/0/0/0/0/0/0/0 Lore% 67 Gallery% 70 Achievement% 53 Wizard Run 0 Options --------- Layout 2 ASCII 0 Keyboard 0 Movement Arrows Keybinds 1 Fullscreen 1 Font 24/Smallcaps Map View 50x44 Zoom Use 0% Tactical HUD 1 Map Filters NONE Filters NONE Steam 1 RUN: ce710701-a0fc-4805-b444-f9c910713a63